Cogmind - Beta 14 @@@ ROGUE MODE // 2025.04.29 @ 21:22:00 Player: IEP Result: Destroyed by as-44262 with Assembled Rifle Performance ------------- Evolutions (1) 500 Regions Visited (3) 600 Robots Destroyed (21) 105 Value Destroyed (508) 508 Prototype IDs (0) 0 Alien Tech Used (0) 0 Bonus (0) 0 TOTAL SCORE: 1713 Bonus ------- None Cogmind --------- Core Integrity 0/400 Matter 290/300 Energy 67/100 System Corruption 7% Temperature Cool (0) Movement Rolling (80) Location -9/Mines Parts ------- > --- POWER (1) -------- (None) > --- PROPULSION (4) --- Wheel Wheel > --- UTILITY (2) ------ Cooling System Small Storage Unit > --- WEAPON (2) ------- Plasma Cannon > --- INVENTORY (8) ---- Improved Terrain Scanner Seismic Detector Seismic Detector Armor Integrity Analyzer Energy Filter Hardened Light Armor Plating Peak State ------------ > --- POWER ------------ Ion Engine > --- PROPULSION ------- Aluminum Leg Aluminum Leg Improved Carbon-fiber Leg Improved Carbon-fiber Leg > --- UTILITY ---------- Cooling System Small Storage Unit > --- WEAPON ----------- Plasma Cannon Advanced Assault Cannon > --- INVENTORY -------- Ion Engine Aluminum Leg Armor Integrity Analyzer Energy Filter Hardened Light Armor Plating Improved EM Pulse Cannon Heavy Battle Rifle Mining Laser [Rating: 24] Favorites ----------- Power Ion Engine Engine Ion Engine Propulsion Aluminum Leg Treads Light Treads Leg Aluminum Leg Wheel Wheel Utility Small Storage Unit Device Cooling System Storage Small Storage Unit Weapon Medium Laser Energy Gun Medium Laser Energy Cannon Plasma Cannon Ballistic Gun Light Assault Rifle Ballistic Cannon Advanced Assault Cannon Build | -11 -10 -9 -9 ------- Run | Yrd Mat Mat Min Slots Evolved 2 | . . 2 . Power . | . . . . Propulsion 2 | . . 2 . Utility . | . . . . Weapon . | . . . . Parts Attached 37 | 6 10 8 13 Power 7 | 1 4 . 2 Engine 7 | 1 4 . 2 Core . | . . . . Reactor . | . . . . Propulsion 13 | 2 1 5 5 Treads 2 | . . 2 . Leg 9 | 2 1 3 3 Wheel 2 | . . . 2 Hover . | . . . . Flight . | . . . . Utility 4 | 1 2 1 . Device 3 | . 2 1 . Storage 1 | 1 . . . Processor . | . . . . Hackware . | . . . . Protection . | . . . . Artifact . | . . . . Weapon 13 | 2 3 2 6 Energy Gun 5 | 2 2 1 . Energy Cannon 4 | . . . 4 Ballistic Gun 3 | . 1 1 1 Ballistic Cannon 1 | . . . 1 Launcher . | . . . . Special Weapon . | . . . . Impact Weapon . | . . . . Slashing Weapon . | . . . . Piercing Weapon . | . . . . Special Melee Weapon . | . . . . Unidentified Prototypes . | . . . . Parts Lost 17 | . 4 2 11 Power 5 | . 2 . 3 Propulsion 7 | . 1 1 5 Utility 1 | . . 1 . Weapon 4 | . 1 . 3 Highest Loss Streak 7 | . 1 1 7 To Critical Strikes . | . . . . Average Slot Usage (%) 92 | . 89 99 94 Engine 11 | . 12 11 10 Treads 1 | . . 5 . Leg 31 | . 23 37 37 Wheel 1 | . . . 2 Device 11 | . 11 11 11 Storage 12 | . 14 11 11 Energy Gun 9 | . 17 11 . Energy Cannon 1 | . . . 3 Ballistic Gun 8 | . 9 11 7 Ballistic Cannon 3 | . . . 9 Peak Build Rating 24 | 6 7 11 24 Average Rating 12 | 5 6 10 21 On Entrance 6 | . 6 7 11 Naked Turns . | . . . . Heaviest Build 26 | 14 15 17 26 Greatest Support 56 | 20 20 40 56 Greatest Overweight (x) 1 | . 1 . 1 Average Overweight (x) . | . . . . Largest Inventory Capacity 8 | 8 8 8 8 Average Capacity 7 | 7 8 8 8 Most Carried 8 | 5 8 8 8 Average Carried 6 | 3 6 7 7 Final Capacity 8 | 8 8 8 8 Final Carried 8 | 4 8 8 6 Class Distribution -------------------- 86% | Mutant 13% | Scavenger-Mutant Dominant Class ---------------- Mutant | -10/Materials Scavenger-Mutant | -9/Materials Mutant | -9/Mines Resources | -11 -10 -9 -9 ----------- Run | Yrd Mat Mat Min Matter Collected 696 | 260 91 107 238 Remotely . | . . . . Salvage Created 753 | 82 343 219 109 Parts 42 | 3 25 14 . Haulers Intercepted . | . . . . Recyclers Shooed . | . . . . Parts Field Recycled . | . . . . Retrieved Matter . | . . . . Parts Self-Destructed . | . . . . Prevented . | . . . . Kills | -11 -10 -9 -9 ------- Run | Yrd Mat Mat Min Combat Hostiles Destroyed 27 | . 12 5 10 Guns 17 | . 12 5 . Cannons 10 | . . . 10 Classes Destroyed 8 | 2 2 2 2 Worker 2 | 2 . . . Recycler 1 | 1 . . . Swarmer 6 | . 6 . . Grunt 9 | . 6 3 . Brawler 1 | . . 1 . Sentry 1 | . . 1 . Demolisher 1 | . . . 1 Assembled 9 | . . . 9 Best Kill Streak 6 | 2 3 3 6 Combat Bots Only 6 | . 3 3 6 Max Kills in Single Turn 1 | 1 1 1 1 Gunslinging . | . . . . Exploded . | . . . . Melee . | . . . . Uniques/NPCs Destroyed . | . . . . Combat | -11 -10 -9 -9 -------- Run | Yrd Mat Mat Min Hostile Shots Fired 243 | . 101 20 122 Missed 76 | . 30 7 39 Damage Taken 2597 | . 706 194 1697 Core 556 | . 151 12 393 Absorbed by Shields . | . . . . Core Remaining (%) 69 | 100 39 . . Volleys Fired 79 | 10 33 14 22 Largest 2 | 2 2 2 2 Hottest 149 | 90 90 73 149 Shots Fired 143 | 20 53 28 42 Gun 107 | 20 53 28 6 Cannon 36 | . . . 36 Launcher . | . . . . Special . | . . . . Kinetic 50 | . 11 14 25 Thermal 71 | 10 33 14 14 Explosive . | . . . . Electromagnetic 22 | 10 9 . 3 Robot Hit Streak 10 | 3 4 8 10 Robot Miss Streak 4 | 4 3 2 3 Penetration Max . | . . . . Secondary Targets 1 | . 1 . . Max Gunslinging Chain 1 | . 1 . . Shots Hit Robots 74 | 10 28 18 18 Core Hits 43 | 4 18 10 11 Critical Kills . | . . . . Critical Parts Destroyed . | . . . . Critical Strikes 4 | 2 1 . 1 Burn 3 | 2 1 . . Corrupt 1 | . . . 1 Melee Attacks . | . . . . Impact . | . . . . Slashing . | . . . . Piercing . | . . . . Sneak Attacks . | . . . . Combat Hostiles . | . . . . Follow-up Attacks . | . . . . Damage Inflicted 1216 | 131 371 195 519 Guns 748 | 131 371 195 51 Cannons 465 | . . . 465 Explosions . | . . . . Melee . | . . . . Ramming 3 | . . . 3 Kinetic 423 | . 71 61 291 Thermal 666 | 88 266 134 178 Explosive . | . . . . Electromagnetic 124 | 43 34 . 47 Impact . | . . . . Slashing . | . . . . Piercing . | . . . . Highest Corruption 7 | . . 5 7 Average Corruption 5 | . . 5 5 Corruption Purged . | . . . . Corruption Blocked . | . . . . Effects 22 | . . 5 17 Message Errors 8 | . . 2 6 Matter Fused 4 | . . 2 2 Heat Flow Errors 3 | . . 1 2 Energy Discharges 1 | . . . 1 Parts Rejected 1 | . . . 1 Data Loss (minor) 3 | . . . 3 Data Loss (major) 1 | . . . 1 Alerts 1 | . . . 1 Overload Shots . | . . . . Overflow Damage 22 | . . . 22 Projectiles 22 | . . . 22 Explosions . | . . . . Melee . | . . . . Knockbacks 6 | . . . 6 Impact . | . . . . Kinetic 4 | . . . 4 Secondary 2 | . . . 2 Self-Inflicted Damage 1 | . . . 1 Shots . | . . . . Rammed 1 | . . . 1 Targets Rammed 1 | . . . 1 Kicked . | . . . . Crushed . | . . . . Highest Temperature 199 | 150 185 133 199 Average Temperature 64 | 62 76 32 42 Received Heat Transfer 354 | . 294 60 . Siege Activations . | . . . . Robots Corrupted . | . . . . Combat Hostiles . | . . . . Parts Fried . | . . . . Impact Corruptions . | . . . . Robots Melted . | . . . . Combat Hostiles . | . . . . Parts Melted 1 | 1 . . . Heat Transferred 1991 | 407 851 383 350 Parts Sabotaged . | . . . . Parts Stolen . | . . . . Parts Stripped . | . . . . Power Chain Reactions . | . . . . Alert | -11 -10 -9 -9 ------- Run | Yrd Mat Mat Min Peak Influence 163 | 15 163 142 26 Initial 37 | . 9 37 7 Average 36 | 2 56 61 6 Maximum Alert Level . | . . . . Low Security (%) 100 | 100 100 100 100 Level 1 . | . . . . Level 2 . | . . . . Level 3 . | . . . . Level 4 . | . . . . Level 5 . | . . . . High Security . | . . . . Max Security . | . . . . Squads Dispatched 6 | . 4 1 1 Investigation 3 | . 2 . 1 Extermination . | . . . . Reinforcement 3 | . 2 1 . Assault . | . . . . Garrison . | . . . . Intercept . | . . . . Searches Triggered . | . . . . Construction Impeded . | . . . . Haulers Reinforced . | . . . . Active Scanning Responses . | . . . . Cargo Convoy Interrupts . | . . . . Stealth | -11 -10 -9 -9 --------- Run | Yrd Mat Mat Min Distress Signals 2 | . 2 . . Communications Jammed . | . . . . Distress Signals . | . . . . Times Spotted 48 | . 21 9 18 Peak Tracking Total 5 | . 5 4 5 Tactical Retreats 4 | . 1 . 3 Traps | -11 -10 -9 -9 ------- Run | Yrd Mat Mat Min Traps Triggered 1 | . 1 . . Indirectly . | . . . . Trap Hack Attempts . | . . . . Triggered . | . . . . Disarmed . | . . . . Reprogrammed . | . . . . Reused . | . . . . Traps Extracted . | . . . . Installed . | . . . . Triggered . | . . . . Machines | -11 -10 -9 -9 ---------- Run | Yrd Mat Mat Min Machines Disabled . | . . . . Max in Single Turn . | . . . . Machines Repaired . | . . . . Machines Dismantled . | . . . . Machines Sabotaged . | . . . . Overloaded Fab Kills . | . . . . Hacking | -11 -10 -9 -9 --------- Run | Yrd Mat Mat Min Machines Accessed 4 | . 2 1 1 Terminals 3 | . 2 1 . Fabricators . | . . . . Repair Stations . | . . . . Recycling Units . | . . . . Scanalyzers . | . . . . Garrison Access . | . . . . Total Hacks 15 | . 10 4 1 Successful 8 | . 5 2 1 Failed 7 | . 5 2 . Catastrophic 4 | . 3 1 . Database Lockouts . | . . . . Manual 4 | . 4 . . Terminals 14 | . 10 4 . Fabricators . | . . . . Repair Stations . | . . . . Recycling Units . | . . . . Scanalyzers . | . . . . Garrison Access . | . . . . Terminal Hacks 8 | . 5 2 1 Record 3 | . 3 . . Open Door 1 | . . . 1 Unreport Threat 4 | . 2 2 . Fabricator Hacks . | . . . . Repair Station Hacks . | . . . . Recycling Unit Hacks . | . . . . Scanalyzer . | . . . . Garrison Access Hacks . | . . . . Unauthorized Hacks . | . . . . Terminals . | . . . . Fabricators . | . . . . Repair Stations . | . . . . Recycling Units . | . . . . Scanalyzers . | . . . . Garrison Access . | . . . . Data Cores Recovered . | . . . . Used . | . . . . Hacking Detections 3 | . 2 1 . Full Trace Events 1 | . 1 . . Feedback Events . | . . . . Feedback Blocked . | . . . . Robot Schematics Acquired . | . . . . Robots Built . | . . . . Authchips . | . . . . Time . | . . . . Total Robot Build Rating . | . . . . Part Schematics Acquired . | . . . . Parts Built . | . . . . Authchips . | . . . . Time . | . . . . Total Part Build Rating . | . . . . Parts Repaired . | . . . . Time . | . . . . Parts Recycled . | . . . . Recycled Matter . | . . . . Retrieved Matter . | . . . . Retrieved Components . | . . . . Parts Scanalyzed . | . . . . Part Schematics Acquired . | . . . . Parts Damaged . | . . . . Bothacking | -11 -10 -9 -9 ------------ Run | Yrd Mat Mat Min Used RIF Installer . | . . . . Robots Hacked . | . . . . Non-combat . | . . . . Combat . | . . . . Robot Hacks Applied . | . . . . Relay Couplers Released . | . . . . Fabnet Peak Effective % . | . . . . Robots Rewired . | . . . . Allies Hacked . | . . . . Hacks Repelled . | . . . . Allies | -11 -10 -9 -9 -------- Run | Yrd Mat Mat Min Total Allies . | . . . . Largest Group . | . . . . Highest-Rated Group . | . . . . Highest-Rated Ally . | . . . . Total Orders . | . . . . Ally Attacks . | . . . . Total Damage . | . . . . Kills . | . . . . Allies Corrupted . | . . . . Allies Melted . | . . . . Intel | -11 -10 -9 -9 ------- Run | Yrd Mat Mat Min Robot Analysis Total . | . . . . Derelict Logs Recovered 1 | . . . 1 Drone Launches . | . . . . Drone Recoveries . | . . . . Exploration | -11 -10 -9 -9 ------------- Run | Yrd Mat Mat Min Turns Passed 1736 | 114 717 292 613 Spaces Moved 1112 | 65 449 171 427 Core 13 | 13 . . . Treads . | . . . . Legs 1067 | 52 449 171 395 Wheels 32 | . . . 32 Hover . | . . . . Flight . | . . . . Fastest Speed 50 | 50 120 120 80 Average Speed 123 | 106 132 120 118 Slowest Speed 190 | 120 190 120 190 Overloaded Moves . | . . . . Propulsion Burnouts . | . . . . Robots Hopped . | . . . . Cave-ins Triggered 1 | . . . 1 Exploration Rate (%) 39 | 5 64 20 70 Regions Visited 3 Branch Regions 1 Pre-discovered Areas 1 | . . . 1 Known Exits Taken . | . . . . Unknown Exits Taken 3 | 1 1 1 . Scrap Searched . | . . . . Spaces Dug . | . . . . Terrain Destroyed 18 | . . . 18 Melee . | . . . . Projectile 18 | . . . 18 AOE . | . . . . Terrain Rammed . | . . . . Walls Destroyed . | . . . . Machines Disabled . | . . . . Actions | -11 -10 -9 -9 --------- Run | Yrd Mat Mat Min Total 1338 | 90 519 233 496 Wait 52 | . 15 26 11 Move 1109 | 64 448 170 427 Hop . | . . . . Pick Up 41 | 10 9 9 13 Fast Attach 1 | . 1 . . Attach 22 | 6 4 4 8 Detach . | . . . . Swap 14 | . 5 4 5 Drop 19 | . 4 6 9 Fire 79 | 10 33 14 22 Melee . | . . . . Ram 1 | . . . 1 Kick . | . . . . Crush . | . . . . Escape Stasis . | . . . . Rewire . | . . . . Trap . | . . . . Miscellaneous . | . . . . Route ------- -11/Scrapyard -10/Materials (discovered 2 exits: *Mat x2) -9/Materials -9/Mines History --------- Turn | Location | Event 2 | -11/Scrapyard | Met Revision 17 9 | -11/Scrapyard | Discovered new exit (range 15) 115 | -11/Scrapyard | Entered Materials 322 | -10/Materials | Build established: Mutant 505 | -10/Materials | Discovered new exit (range 10) 774 | -10/Materials | Discovered new exit (range 16) 793 | -10/Materials | Core integrity fell below 50% 832 | -10/Materials | Entered another Materials area 832 | -9/Materials | Evolved 2 slots: Propulsion x2 1097 | -9/Materials | Discovered new exit (range 14) 1124 | -9/Materials | Entered Mines 1128 | -9/Mines | Met a Derelict shopkeep closing up shop 1185 | -9/Mines | A weapon hastily lodged in a ceiling crevice suddenly fell to the ground 1206 | -9/Mines | Learned location of Zion (-6) 1405 | -9/Mines | Assembled infested the area 1500 | -9/Mines | Crushed by falling debris 1677 | -9/Mines | Core integrity fell below 50% 1733 | -9/Mines | Core integrity fell below 20% 1737 | -9/Mines | Destroyed by as-44262 with Assembled Rifle Last Messages --------------- 01668_ as-58159 destroyed. 01669_ Adv. Assault Cannon destroyed. 01674_ as-63622 misfires. 01680_ System corrupted: Matter fused (-9). 01680_ Acquired 50 matter. 01690_ as-97269 destroyed. 01692_ Aluminum Leg destroyed. 01695_ U-05 Engineer builds a Wall. 01700_ System corrupted: Plasma Cannon rejected. 01701_ U-05 Engineer destroyed. 01704_ U-05 Engineer builds a Wall. 01705_ U-05 Engineer destroyed. 01709_ Imp. Carbon-fiber Leg destroyed. 01713_ as-44262 IFF system glitched. 01714_ Imp. EM Pulse Cannon destroyed. 01715_ Slammed into as-44262. 01718_ Ion Engine destroyed. 01726_ Acquired Plasma Cannon. 01728_ Acquired 10 matter. 01731_ Acquired Wheel. Map ----- +----------------------------------------------------+ | ##?????????????????????????????????????????? | | ##????????????????????????????????????????? | | #????????????????????????????????????????? | | ##???????????????????????????????????????? | | #???????????????????????????????????????? | | #???????????????????????????????????????? | | # ##???????????????????????????????????????? | | ### #?????????????"??????????????????????????? | | ??# #???????????""" ?? ##????????????????????? | | #?# #?????????? """ #????????????????????? | | #?# ########## ??????????????????? | | #?# #????????????????????????? | | #?######### ### #?????????????????????????? | | ???####???# #????????????????????????????????? | | #### #??# #????????????????????????????????? | | #?# #????????????????????????????????? | | ## ##???????????????????????????????? | | ## =% #"#??????????????????????????????? | | ?# #"##??????####??????????????????? | | ?# ##????## ##?????????????????? | | ?## %%###### #?????????????????? | | ??## % ## #?????????????????? | | ???# %%% ##?????????????????? | | ???# """ #; ;#?????????????????? | | ???# """ ####;; ;#?????????????????? | | ???## """ #??#### @ ##????????????????? | | ????# ?????####% ##???????????????? | | ???# ????????## #???????????????? | | ?? #????????# ! #???????????????? | | ?? ##???????##%%!##???###?????????? | | ?##### ####???????## ;#???##"#?????????? | | ?????# #???????????# % %##???# ##????????? | | ?????# ????????????# aa##???##% #????????? | | ???????? ?????????????## | #???## #????????? | | ???????????????????????# #??## #????????? | | ??????????????????????## a #### #????????? | | ?????????????????????## ## ##???????? | | ????????????????######" ##??????? | | ???????????????## ## ##?????? | | ???????????????# #?????? | | ??????????????## #?????? | | ?????????????## % ####?????? | | ?????????????# ## !=|# ##???????? | | ?????????????# ###### !%## "#???????? | | ????????????## ##????## *##" ##???????? | | ???####?????# #??????## ##### #????????? | | ?### ##????# #???????######## #????????? | | ## #????## ##??????????# #????????? | | # """ #?????#####???????????# #????????? | | """ #????????????????####?# #####????????? | +----------------------------------------------------+ Best States ------------- Heat Dissipation 50 Energy Generation 10 Energy Capacity 250 Matter Stores 300 Matter Capacity 300 Sight Range 16 Terrain Scan Density 10 ECM Strength 1 Evasion (%) 55 Item Schematics ----------------- None Robot Schematics ------------------ None Fabricated ------------ Nothing Alien Tech Used ----------------- None Achievements -------------- None Challenges ------------ None Game ------ Seed EnergySurgeAccelerator Manual? 0 Play Time 00:17:21 Cumulative 32.9 hours Start 2025.04.29 @ 21:04:44 End 2025.04.29 @ 21:22:00 Sessions 1 Manual Loads 0 Difficulty Rogue Special Mode None Game No. 55 Rogue 55 Adventurer 0 Explorer 0 Win Type - Total 0 Types 0/0/0/0/0/0/0/0/0 Lore% 17 Gallery% 28 Achievement% 20 Wizard Run 0 Options --------- Layout 0 ASCII 0 Keyboard 0 Movement Mouse Keybinds 0 Fullscreen 2 Font 24/Smallcaps Map View 76x50 Zoom Use 0% Tactical HUD 1 Map Filters NONE Filters NONE Steam 1 RUN: cd1d20be-1f2b-445b-aa4b-a632d20ce79b